bitfinex-derivatives/quotes_ETHF0:USTF0_20250627
["timestamp","ask_amount","ask_price","bid_price","bid_amount"]
[1751008378566,1.65957556,2449.5,2449.4,31.33]
[1751008380470,1.65957556,2449.5,2449.4,34.67950232]
[1751008380672,0.99127556,2449.5,2449.4,42.88730232]
[1751008380871,0.40799,2450.0,2449.4,42.47922232]
[1751008381078,0.40799,2450.0,2449.9,2.94142232]
[1751008381275,0.40799,2450.0,2449.9,27.84142232]
[1751008381276,1.39849635,2450.0,2449.9,27.84142232]
[1751008381577,0.99050635,2450.0,2449.9,27.84142232]
[1751008381772,0.99050635,2450.0,2449.9,28.50592232]
[1751008381968,0.99050635,2450.0,2449.9,28.91391232]
[1751008382370,0.6683,2450.1,2449.9,30.37101232]
[1751008382566,0.6683,2450.1,2450.0,0.40798]
[1751008382880,1.65690323,2450.1,2450.0,0.40798]
[1751008384275,3.2078,2450.2,2450.0,0.40798]
[1751008384468,3.2078,2450.2,2450.1,24.897]
[1751008384670,4.60320161,2450.2,2450.1,24.897]
[1751008385270,4.19526161,2450.2,2450.1,24.897]
[1751008386281,4.19526161,2450.2,2450.1,28.24638232]
[1751008386670,3.2078,2450.2,2450.1,27.83842232]
[1751008386869,3.61574,2450.2,2450.1,27.83842232]
[1751008387682,3.2078,2450.2,2450.1,28.24638232]
[1751008387885,3.9049,2450.5,2450.1,27.83842232]
[1751008388181,1.39435295,2450.4,2450.2,0.40793]
[1751008388376,0.40791,2450.4,2450.3,24.895]
[1751008388679,0.98545476,2450.4,2450.3,25.30293]
[1751008388885,1.39336476,2450.4,2450.3,24.895]
[1751008389885,0.40791,2450.4,2450.3,24.895]
[1751008390080,3.9049,2450.5,2450.3,24.895]
[1751008390380,0.6971,2450.5,2450.4,0.40791]
[1751008390592,0.6971,2450.5,2450.4,1.09121]
[1751008390883,0.6971,2450.5,2450.4,0.6833]
[1751008391085,0.6971,2450.5,2450.4,1.09121]
[1751008391286,0.6971,2450.5,2450.4,7.51721]
[1751008391687,0.715,2450.7,2450.4,7.51721]
[1751008391885,0.40788,2450.6,2450.5,24.893]
[1751008392189,0.7221,2450.7,2450.6,0.40788]
[1751008392382,0.7221,2450.7,2450.5,27.83442232]
[1751008392574,1.12997,2450.7,2450.5,28.24231232]
[1751008392778,1.12997,2450.7,2450.6,2.94142232]
[1751008392779,0.7221,2450.7,2450.6,2.94142232]
[1751008393188,3.61563,2450.9,2450.7,0.40785]
[1751008393389,3.61563,2450.9,2450.7,25.29885]
[1751008393684,0.40781,2451.0,2450.8,3.34926232]
[1751008393873,0.40781,2451.0,2450.9,24.891]
[1751008394072,0.98386556,2451.0,2450.9,24.891]
[1751008394271,1.39167556,2451.0,2450.9,24.891]
[1751008395287,0.98386556,2451.0,2450.6,3.2078]
[1751008395487,1.86864,2450.9,2450.7,31.313]
[1751008395984,0.6615,2450.8,2450.7,31.72086]
[1751008396184,1.06934,2450.8,2450.7,31.313]
[1751008396395,0.6615,2450.8,2450.7,31.72086]
[1751008396777,1.06934,2450.8,2450.7,32.0272]
[1751008396988,0.6615,2450.8,2450.7,32.43506]
[1751008397979,0.40784,2450.9,2450.7,35.37648232]
[1751008398683,0.40784,2450.8,2450.7,34.96862232]
[1751008401891,0.40784,2450.8,2450.7,32.0272]
[1751008402093,0.40784,2450.9,2450.7,32.43506]
[1751008402694,0.40784,2450.8,2450.7,32.0272]
[1751008405794,0.40784,2450.9,2450.7,32.43506]
[1751008406097,2.1558,2451.1,2450.7,31.313]
[1751008406098,0.40784,2450.8,2450.7,31.313]
[1751008407895,0.40784,2450.9,2450.7,31.72086]
[1751008408595,0.40784,2450.9,2450.7,31.72085]
[1751008409194,0.40784,2450.9,2450.8,2.94142232]
[1751008409399,0.40784,2450.9,2450.8,3.34926232]
[1751008409996,0.40782,2451.0,2450.9,0.40783]
[1751008410299,0.4078,2451.1,2450.9,24.88]
[1751008410493,0.4078,2451.1,2450.9,25.98551]
[1751008410694,0.4078,2451.1,2451.0,41.20781]
[1751008411099,0.4078,2451.1,2450.9,27.33562]
[1751008411601,0.4078,2451.1,2451.0,40.8]
[1751008412490,4.32059,2451.2,2451.0,40.8]
[1751008412692,4.32059,2451.2,2451.1,24.879]
[1751008412992,2.84154636,2452.0,2451.2,1.01945]
[1751008413201,0.39998694,2452.0,2451.9,6.55688232]
[1751008413400,0.7165,2452.5,2451.9,37.46422232]
[1751008413601,0.7165,2452.5,2452.4,2.94142232]
[1751008413903,0.7165,2452.5,2452.4,31.316]
[1751008414195,2.44155942,2452.6,2452.4,3.2078]
[1751008414503,3.56558942,2452.7,2452.4,34.93837]
[1751008415198,3.56558942,2452.7,2452.5,2.94142232]
[1751008415394,3.56558942,2452.7,2452.6,24.906]
[1751008415593,3.15805942,2452.7,2452.4,3.2078]
[1751008415802,0.40754,2452.6,2452.5,31.326]
[1751008416002,0.40754,2452.6,2452.4,3.2078]
[1751008416208,0.40754,2452.6,2452.5,31.318]
[1751008416511,0.40756,2452.5,2452.4,3.2078]
[1751008417000,0.40756,2452.5,2452.4,31.315]
[1751008417390,1.79006,2452.5,2452.4,31.315]
[1751008417601,1.3825,2452.5,2452.1,3.2078]
[1751008417797,1.3825,2452.5,2452.1,31.314]
[1751008417798,0.40761,2452.2,2452.1,31.314]
[1751008418199,3.17051,2452.2,2452.1,31.314]
[1751008419603,1.78801,2452.2,2452.1,34.25542232]
[1751008420303,1.78801,2452.2,2452.1,31.314]
[1751008421203,1.3804,2452.2,2452.1,31.309]
[1751008421403,2.8111,2452.2,2452.1,31.304]
[1751008421608,3.21871,2452.2,2452.1,31.304]
[1751008422109,3.21871,2452.2,2452.1,34.24542232]
[1751008422606,1.78801,2452.2,2452.1,34.24542232]
[1751008424102,3.10571,2452.2,2452.1,34.24542232]
[1751008425111,0.40766,2451.9,2451.8,3.2078]
[1751008425307,0.40766,2451.9,2451.8,34.5098]
[1751008425808,0.40766,2451.9,2451.8,31.3]
[1751008426007,1.37803926,2451.9,2451.8,31.3]
[1751008426213,0.40773,2451.5,2451.4,6.418]
[1751008426899,2.53603,2451.5,2451.4,6.418]
[1751008429906,5.47745232,2451.5,2451.4,6.418]
[1751008431315,0.40778,2451.2,2451.1,80.276]
[1751008431916,0.40778,2451.2,2451.1,31.314]
[1751008432617,0.7122,2451.7,2451.1,34.25542232]
[1751008432817,1.1199,2451.7,2451.6,2.94142232]
[1751008433213,2.0869822,2451.7,2451.6,2.94142232]
[1751008433607,2.0870811,2451.7,2451.6,2.94142232]
[1751008434516,1.1199,2451.7,2451.6,2.94142232]
[1751008436119,3.2078,2451.9,2451.6,2.94142232]
[1751008436322,0.96745556,2451.8,2451.6,0.4077]
[1751008436617,0.40768,2451.8,2451.7,2.94142232]
[1751008436824,0.96758887,2451.8,2451.7,3.34911232]
[1751008437120,3.2078,2451.9,2451.8,0.40768]
[1751008437322,0.96756276,2451.9,2451.8,0.40768]
[1751008437519,0.96756276,2451.9,2451.8,5.71968]
[1751008437721,1.11052,2452.2,2451.9,0.40765]
[1751008437914,1.11052,2452.2,2452.1,2.94142232]
[1751008438115,2.0781441,2452.2,2452.1,2.94142232]
[1751008439225,1.6705241,2452.2,2452.1,2.94142232]
[1751008439423,2.0781341,2452.2,2452.1,2.94142232]
[1751008439827,0.9676241,2452.2,2452.1,2.94142232]
[1751008440324,1.3752341,2452.2,2452.1,2.94142232]
[1751008442124,0.9676241,2452.2,2452.1,2.94142232]
[1751008442428,0.9676241,2452.2,2452.1,3.34905232]
[1751008442723,0.9676241,2452.2,2452.1,4.77545232]
[1751008444018,1.3752341,2452.2,2452.1,2.94142232]
[1751008444224,2.0499341,2452.2,2452.1,2.94142232]
[1751008444529,1.6423241,2452.2,2452.1,2.94142232]
[1751008444827,0.9676241,2452.2,2452.1,3.34905232]
[1751008445325,0.9676241,2452.2,2452.1,2.94142232]
[1751008445716,0.9676241,2452.2,2452.1,4.26112232]
[1751008445926,0.9676241,2452.2,2452.1,4.66875232]
[1751008446124,2.44155942,2452.7,2452.5,0.40755]
[1751008446327,2.44155942,2452.7,2452.6,9.38742232]
[1751008446525,0.40753,2452.7,2452.6,2.94142232]
[1751008448319,2.44155942,2452.9,2452.7,0.40752]
[1751008448622,2.44155942,2452.9,2452.5,6.446]
[1751008448623,2.94142232,2452.9,2452.5,6.446]
[1751008448821,0.40759,2452.3,2452.2,6.446]
[1751008449226,0.40761,2452.2,2452.1,9.6538]
[1751008449725,2.94142232,2452.3,2452.1,6.446]
[1751008449930,1.84411,2452.2,2452.1,6.446]
[1751008450227,1.4365,2452.2,2451.8,2.7923]
[1751008450439,1.4365,2452.2,2451.9,6.446]
[1751008450732,0.40764,2452.1,2451.9,6.446]
[1751008450935,0.40764,2452.0,2451.9,6.446]
[1751008451233,0.40763,2452.1,2451.9,6.85366]
[1751008451621,0.40762,2452.2,2451.9,6.85366]
[1751008452530,0.40763,2452.1,2451.9,6.85366]
[1751008452831,0.40763,2452.1,2451.9,7.8978]
[1751008453029,0.40763,2452.1,2451.9,8.30546]
[1751008453232,0.40762,2452.2,2451.9,8.30546]
[1751008453433,0.40762,2452.2,2452.0,6.02710047]
[1751008453733,4.6068,2452.5,2452.0,7.44430047]
[1751008454031,0.40762,2452.2,2452.0,7.03666047]
[1751008456029,0.40761,2452.3,2452.1,0.40763]
[1751008456230,3.9033,2452.5,2452.2,6.85261]
[1751008456434,0.40759,2452.4,2452.2,7.1749]
[1751008457436,0.40759,2452.3,2452.2,7.1749]
[1751008458032,3.9033,2452.5,2452.2,7.1749]
[1751008458033,3.9033,2452.5,2452.2,6.445]
[1751008458234,0.40759,2452.3,2452.2,6.445]
[1751008459635,5.61946047,2452.3,2451.8,8.85832831]
[1751008459939,0.40766,2451.9,2451.8,6.445]
[1751008460529,0.40766,2452.0,2451.8,7.8751]
[1751008461439,0.40764,2452.1,2451.8,8.28277]
[1751008462338,0.40765,2452.0,2451.8,8.28277]
[1751008463131,0.40765,2452.0,2451.8,7.8751]
[1751008463725,0.40765,2452.0,2451.8,8.28278]
[1751008463932,0.40765,2452.0,2451.8,7.8751]
[1751008464132,0.40765,2452.0,2451.8,6.445]
[1751008464435,0.40765,2452.0,2451.8,6.85268]
[1751008464635,0.40765,2452.0,2451.8,6.445]
[1751008465340,0.40766,2451.9,2451.8,6.445]
[1751008465645,0.40766,2452.0,2451.8,6.445]
[1751008465838,0.40766,2452.0,2451.4,1.4177]
[1751008465839,0.40774,2451.4,2451.3,8.85832831]
[1751008466035,3.2078,2451.5,2451.3,9.26608831]
[1751008467037,3.2078,2451.5,2451.3,11.34978831]
[1751008467545,3.2078,2451.5,2451.4,2.41332831]
[1751008467838,0.40774,2451.4,2451.3,8.85832831]
[1751008468438,0.40774,2451.4,2451.3,6.445]
[1751008470036,3.61554,2451.5,2451.3,6.85276]
[1751008470237,3.2078,2451.5,2451.4,3.33552745]
[1751008471239,3.61553,2451.5,2451.4,2.92778745]
[1751008471441,3.2078,2451.5,2451.4,3.33552745]
[1751008471840,3.2078,2451.5,2451.4,4.77762745]
[1751008472042,2.44155942,2452.3,2451.4,34.33088745]
[1751008472229,3.2078,2452.4,2452.0,2.92778745]
[1751008472230,0.40764,2452.1,2452.0,2.92778745]
[1751008472430,1.36447162,2452.1,2452.0,2.92778745]
[1751008473148,0.40764,2452.1,2452.0,2.92778745]
[1751008473340,6.38818687,2452.7,2452.0,11.8746749]
[1751008473341,2.44155942,2452.7,2452.0,11.8746749]
[1751008473639,0.40752,2452.8,2452.6,2.92778745]
[1751008473844,0.956553,2452.7,2452.6,9.80932745]
[1751008474342,0.956553,2452.7,2452.6,6.88154]
[1751008474746,1.08501,2452.9,2452.7,0.40753]
[1751008475041,1.08501,2452.9,2452.6,6.88154]
[1751008475639,0.6775,2452.9,2452.7,0.40752]
[1751008476845,0.6775,2452.9,2452.7,0.40753]
[1751008477031,0.6775,2452.9,2452.6,6.88154]
[1751008477338,3.61528,2453.0,2452.7,0.40752]
[1751008478046,3.2078,2453.0,2452.6,6.474]
[1751008478244,5.00429,2453.0,2452.6,6.88154]
[1751008478638,0.4075,2452.9,2452.6,6.88154]
[1751008480049,0.40752,2452.8,2452.6,6.474]
[1751008480241,0.40753,2452.7,2452.6,6.474]
[1751008480847,0.40752,2452.8,2452.6,6.474]
[1751008481852,0.40752,2452.8,2452.6,6.88154]
[1751008482045,1.12251,2452.9,2452.6,6.88154]
[1751008482343,1.12251,2452.9,2452.7,0.40753]
[1751008482549,0.40751,2452.8,2452.6,6.88154]
[1751008482750,1.1225,2452.9,2452.6,6.474]
[1751008482950,1.1225,2452.9,2452.6,8.32693]
[1751008483649,0.715,2452.9,2452.7,0.40752]
[1751008484048,3.2078,2453.0,2452.7,0.40752]
[1751008484249,3.2078,2453.0,2452.6,7.9194]
[1751008484453,3.2078,2453.7,2452.8,8.82309179]
[1751008484749,3.2078,2453.7,2453.1,9.23054179]
[1751008484750,0.40739,2453.5,2453.1,9.23054179]
[1751008484949,2.35240906,2453.6,2453.2,6.472]
[1751008484950,1.34941906,2453.4,2453.2,6.472]
[1751008485147,2.7822,2453.6,2453.2,6.472]
[1751008485148,3.18959,2453.6,2453.2,6.472]
[1751008485353,0.40742,2453.4,2453.2,6.472]
[1751008485653,0.40743,2453.3,2453.2,6.472]
[1751008487053,0.40748,2453.1,2452.9,25.026]
[1751008487246,0.40748,2453.1,2453.0,6.472]
[1751008487752,1.10496,2453.2,2453.0,6.472]
[1751008488455,0.40746,2453.1,2453.0,6.472]
[1751008489651,1.10496,2453.2,2453.0,6.472]
[1751008490050,1.10496,2453.2,2453.1,3.2078]
[1751008490553,1.10496,2453.2,2453.1,9.6798]
[1751008491054,0.6975,2453.2,2453.1,9.6788]
[1751008492255,1.10494,2453.2,2453.1,9.6788]
[1751008495458,1.10494,2453.2,2453.1,3.2078]
[1751008495664,0.40748,2453.0,2452.9,6.471]
[1751008495854,0.40747,2453.1,2452.9,6.471]
[1751008496160,0.40748,2453.0,2452.9,6.471]
[1751008496356,0.40748,2453.0,2452.9,9.39517039]
[1751008497162,0.40747,2453.1,2452.9,9.39517039]
[1751008497356,0.40747,2453.1,2453.0,3.2078]
[1751008497962,1.86067,2453.1,2453.0,3.2078]
[1751008498159,2.53417,2453.1,2453.0,3.2078]
[1751008499066,0.40748,2453.0,2452.9,6.471]
[1751008499264,1.73448,2453.0,2452.9,6.471]
[1751008500070,0.40748,2453.0,2452.9,12.60297039]
[1751008501167,0.40748,2453.0,2452.9,6.471]
[1751008501366,0.40748,2453.0,2452.9,9.39517039]
[1751008501564,1.13748,2453.0,2452.9,9.39517039]
[1751008502965,1.13748,2453.0,2452.9,6.471]
[1751008503373,0.40753,2452.7,2452.6,3.2078]
[1751008503682,0.40753,2452.7,2452.6,9.7188]
[1751008507480,0.40752,2452.8,2452.6,9.7188]
[1751008507681,0.40753,2452.7,2452.6,9.7188]
[1751008508374,0.40752,2452.8,2452.6,9.7188]
[1751008508674,0.40753,2452.7,2452.6,9.7188]
[1751008508875,1.3516,2452.9,2452.6,12.64297039]
[1751008509075,1.3516,2452.9,2452.6,13.05051039]
[1751008509379,0.4075,2452.9,2452.6,13.77361039]
[1751008509977,0.40751,2452.8,2452.6,13.77361039]
[1751008510176,0.40751,2452.9,2452.6,13.77361039]
[1751008510484,1.13749,2453.0,2452.8,2.92417039]
[1751008510783,1.13749,2453.0,2452.9,3.2078]
[1751008510976,2.08302222,2453.0,2452.9,3.2078]
[1751008512180,0.40749,2452.9,2452.8,2.92417039]
[1751008512382,0.40751,2452.8,2452.7,24.997]
[1751008515480,0.40753,2452.7,2452.6,3.2078]
[1751008515785,2.49103,2452.7,2452.6,3.2078]
[1751008516984,3.4369329,2452.7,2452.6,3.2078]
[1751008517790,0.9459029,2452.7,2452.6,3.2078]
[1751008518080,0.73,2453.0,2452.6,3.2078]
[1751008518286,1.35326822,2452.9,2452.8,2.92417039]
[1751008522691,0.40751,2452.8,2452.7,0.7215]
[1751008523486,0.40753,2452.7,2452.6,3.2078]
[1751008525491,0.73,2453.0,2452.6,6.13197039]
[1751008525792,0.40748,2453.0,2452.9,6.13197039]
[1751008525998,1.35320297,2453.0,2452.9,6.13197039]
[1751008526190,0.94572297,2453.0,2452.9,6.13197039]
[1751008526791,0.94572297,2453.0,2452.9,6.53946039]
[1751008526994,0.94581364,2453.0,2452.9,7.98896039]
[1751008527291,3.2078,2453.5,2452.9,32.56547039]
[1751008527593,1.35323717,2453.4,2453.3,2.92417039]
[1751008527782,0.40743,2453.3,2453.2,6.512]
[1751008527985,1.35323717,2453.3,2453.2,6.512]
[1751008529995,0.40743,2453.3,2453.2,6.512]
[1751008531596,0.40748,2453.0,2452.9,9.7048]
[1751008532296,0.40748,2453.0,2452.9,3.2078]
[1751008533701,1.01874,2452.9,2452.6,6.497]
[1751008533893,0.40756,2452.5,2452.4,5.62112831]
[1751008534901,0.40756,2452.5,2452.4,3.2078]
[1751008535197,0.40756,2452.5,2452.4,5.62112831]
[1751008535399,0.40756,2452.5,2452.4,3.2078]
[1751008546110,5.55806,2452.7,2452.2,24.978]
[1751008546302,0.40759,2452.3,2452.2,24.978]
[1751008546907,0.40761,2452.2,2452.1,34.6798]
[1751008547306,0.7178,2452.4,2452.1,35.08742]
[1751008547506,0.4076,2452.3,2452.1,34.6798]
[1751008547909,1.12539,2452.4,2452.1,35.08743]
[1751008548101,0.4076,2452.3,2452.1,34.6798]
[1751008548302,4.5392,2452.7,2452.2,3.33300742]
[1751008548502,1.62955775,2452.6,2452.5,2.92540742]
[1751008549003,2.03709775,2452.6,2452.5,2.92540742]
[1751008550206,0.40758,2452.4,2452.3,28.55970742]
[1751008550807,0.40758,2452.4,2452.1,3.61542]
[1751008551013,2.0796,2452.6,2452.1,3.2078]
[1751008551205,2.0796,2452.6,2452.1,6.54082742]
[1751008551405,0.4076,2452.3,2452.1,7.57430742]
[1751008551708,2.0796,2452.6,2452.1,7.57430742]
[1751008552012,0.4076,2452.3,2452.1,7.57430742]
[1751008552509,0.40759,2452.3,2452.1,7.98192742]
[1751008552912,0.40759,2452.4,2452.1,7.98192742]
[1751008553105,0.40759,2452.4,2452.3,2.92540742]
[1751008553810,2.0796,2452.6,2452.3,2.92540742]
[1751008553811,0.6845,2452.6,2452.3,2.92540742]
[1751008554107,0.40756,2452.5,2452.3,2.92540742]
[1751008554406,0.40756,2452.5,2452.4,0.7071]
[1751008555509,3.2078,2453.3,2452.4,10.4139]
[1751008555812,1.10669,2453.0,2452.7,3.2078]
[1751008556010,1.34816605,2452.9,2452.8,0.7044]
[1751008556512,0.94067605,2452.9,2452.8,0.7044]
[1751008556913,1.34816605,2452.9,2452.8,5.01660742]
[1751008557305,0.94067605,2452.9,2452.8,5.01660742]
[1751008558013,0.94067605,2452.9,2452.8,5.42411742]
[1751008558309,0.94067605,2452.9,2452.8,6.11461742]
[1751008558509,0.94067605,2452.9,2452.8,5.70710742]
[1751008558811,0.94067605,2452.9,2452.8,6.11461742]
[1751008559507,0.94067605,2452.9,2452.8,12.61361742]
[1751008559714,0.40744,2453.3,2452.9,0.40749]
[1751008560012,0.94096669,2453.2,2453.0,7.52460742]
[1751008560210,0.40744,2453.3,2453.0,7.93208742]
[1751008560512,0.40744,2453.3,2453.2,2.92540742]
[1751008560709,0.94115502,2453.3,2453.2,2.92540742]
[1751008560909,0.40739,2453.6,2453.2,40.46394742]
[1751008561107,0.40739,2453.6,2453.5,6.13320742]
[1751008561307,0.40739,2453.6,2453.5,3.2078]
[1751008563612,1.86319,2453.6,2453.5,3.2078]
[1751008564310,0.40741,2453.4,2453.3,31.455]
[1751008564505,0.40743,2453.3,2453.2,3.2078]
[1751008565813,3.33283742,2453.3,2453.2,3.2078]
[1751008567612,0.40743,2453.3,2453.2,3.2078]
[1751008572726,0.40749,2452.9,2452.8,3.8727]
[1751008572919,6.13320742,2453.3,2452.5,6.88855]
[1751008572920,0.40752,2452.8,2452.5,6.88855]
[1751008573224,0.40752,2452.8,2452.5,10.52175742]
[1751008573423,0.6923,2452.9,2452.5,6.481]
[1751008573620,0.40754,2452.6,2452.5,6.481]
[1751008573817,0.40753,2452.7,2452.5,6.481]
[1751008574017,0.40753,2452.7,2452.5,9.40640742]
[1751008574619,0.40752,2452.8,2452.5,9.81396742]
[1751008574823,0.40752,2452.8,2452.6,0.7078]
[1751008575025,0.40751,2452.8,2452.6,0.7078]
[1751008575330,0.40751,2452.8,2452.6,3.63320742]
[1751008575637,0.40753,2452.7,2452.6,3.63320742]
[1751008575822,0.40752,2452.8,2452.6,3.63320742]
[1751008576132,0.40753,2452.7,2452.6,3.63320742]
[1751008576625,1.09977,2453.1,2452.6,3.63320742]
[1751008576828,1.09977,2453.1,2452.9,2.92540742]
[1751008578629,0.40748,2453.0,2452.9,2.92540742]
[1751008580737,0.40748,2453.0,2452.9,4.36880742]
[1751008580937,0.40747,2453.1,2452.9,4.36880742]
[1751008581328,0.40747,2453.1,2453.0,0.6579]
[1751008581731,1.11284,2453.3,2453.0,1.06537]
[1751008581942,1.11284,2453.3,2453.2,2.92540742]
[1751008582145,2.04832318,2453.3,2453.2,2.92540742]
[1751008583646,1.34292318,2453.3,2453.2,2.92540742]
[1751008584047,0.93548318,2453.3,2453.2,2.92540742]
[1751008584342,0.40739,2453.6,2453.3,0.40743]
[1751008584541,0.40739,2453.6,2453.4,2.92540742]
[1751008584740,0.9367086,2453.5,2453.4,3.62210742]
[1751008585545,1.3440986,2453.5,2453.4,3.62210742]
[1751008585759,1.3440986,2453.5,2453.4,6.82990742]
[1751008586347,0.9367086,2453.5,2453.4,6.82990742]
[1751008587146,0.40739,2453.5,2453.4,3.9045]
[1751008587842,0.40739,2453.5,2453.4,3.2078]
[1751008588041,1.34426794,2453.5,2453.4,3.2078]
[1751008588243,2.75286794,2453.5,2453.4,3.2078]
[1751008588851,1.34426794,2453.5,2453.4,3.2078]
[1751008589245,0.93687794,2453.5,2453.4,3.2078]
[1751008589547,0.93687794,2453.5,2453.4,6.13320742]
[1751008589750,1.34426794,2453.5,2453.4,6.13320742]
[1751008591050,1.34426794,2453.5,2453.4,3.2078]
[1751008595849,2.78746794,2453.5,2453.4,3.2078]
[1751008597056,3.39857794,2453.5,2453.0,5.2313]
[1751008597257,0.40746,2453.1,2453.0,3.2078]
[1751008597459,0.40746,2453.2,2453.0,3.2078]
[1751008597659,0.40746,2453.1,2453.0,3.2078]
[1751008599154,0.40745,2453.2,2453.0,3.2078]
[1751008599360,0.40746,2453.1,2453.0,3.2078]
[1751008599563,0.40745,2453.2,2453.0,3.2078]
[1751008601659,0.40746,2453.1,2453.0,3.2078]
[1751008601859,0.40745,2453.2,2453.0,3.2078]
[1751008603156,0.40746,2453.1,2453.0,3.2078]
[1751008606068,0.40745,2453.2,2453.0,3.2078]
[1751008606974,0.40745,2453.2,2453.0,6.13320742]
[1751008607372,0.40746,2453.1,2453.0,6.13320742]
[1751008610473,0.40746,2453.1,2453.0,3.2078]
[1751008618877,1.3687,2453.3,2453.0,6.13320742]
[1751008619084,0.40746,2453.1,2453.0,6.13320742]
[1751008624087,1.3909,2453.4,2453.0,6.54067742]
[1751008624276,8.88455942,2453.8,2453.3,3.2078]
[1751008624583,0.40738,2453.6,2453.3,3.61522]
[1751008624780,0.93580801,2453.5,2453.4,1.4512]
[1751008625587,0.40738,2453.6,2453.4,1.4512]
[1751008625784,0.40738,2453.6,2453.5,2.92540742]
[1751008626087,0.40738,2453.6,2453.5,3.63700742]
[1751008626283,1.34274939,2453.6,2453.5,3.63700742]
[1751008626687,0.93536939,2453.6,2453.5,3.63700742]
[1751008627386,0.93536939,2453.6,2453.5,29.91000742]
[1751008627581,0.40734,2453.9,2453.5,30.31739742]
[1751008627785,0.40734,2453.9,2453.8,2.92540742]
[1751008628286,1.34221961,2453.9,2453.8,2.92540742]
[1751008628683,0.40734,2453.9,2453.8,2.92540742]
[1751008630584,0.40732,2454.0,2453.8,2.92540742]
[1751008630780,0.40732,2454.0,2453.8,4.28960742]
[1751008630984,0.40732,2454.0,2453.9,0.7151]
[1751008631484,0.29446674,2454.3,2453.9,25.6151]
[1751008631787,0.70172674,2454.3,2454.2,2.92540742]
[1751008632178,0.4073,2454.1,2454.0,3.2078]
[1751008632880,0.4073,2454.1,2454.0,6.13320742]
[1751008633179,0.40729,2454.2,2454.0,6.13320742]
[1751008633373,0.29446674,2454.3,2454.0,6.13320742]
[1751008633579,0.29446674,2454.3,2454.2,2.92540742]
[1751008633779,0.29446674,2454.3,2454.2,34.30840742]
[1751008633980,0.70172674,2454.3,2454.2,35.65280742]
[1751008634185,0.29446674,2454.3,2454.2,35.65280742]
[1751008634683,0.70172674,2454.3,2454.2,35.65280742]
[1751008634888,0.29446674,2454.3,2454.2,35.65280742]
[1751008635584,0.29446674,2454.3,2454.2,36.06008742]
[1751008635787,1.01784,2455.1,2454.4,2.92540742]
[1751008636090,0.40722,2454.6,2454.5,35.2796]
[1751008636691,0.40722,2454.6,2454.5,34.5998]
[1751008637187,0.40722,2454.6,2454.5,28.1588]
[1751008637982,0.4072,2454.7,2454.5,28.1588]
[1751008638288,0.40721,2454.6,2454.5,28.1588]
[1751008642691,0.40728,2454.2,2454.1,3.2078]
[1751008642887,0.40728,2454.2,2454.1,34.5878]
[1751008643193,3.94362742,2454.2,2453.9,24.942]
[1751008643394,0.40735,2453.8,2453.7,24.943]
[1751008643589,0.40736,2453.7,2453.6,28.1668]
[1751008643785,0.40736,2453.7,2453.6,28.1648]
[1751008645087,0.40736,2453.7,2453.6,31.09020742]
[1751008645385,0.40736,2453.7,2453.6,24.956]
[1751008645792,0.40739,2453.5,2453.4,5.33873573]
[1751008645992,0.40739,2453.5,2453.4,36.72673573]
[1751008646590,0.40739,2453.5,2453.4,34.31340742]
[1751008647684,0.40741,2453.4,2453.3,3.2078]
[1751008647891,0.40741,2453.4,2453.3,37.51420742]
[1751008648490,0.40741,2453.4,2453.3,34.5888]
[1751008648896,0.40741,2453.4,2453.3,3.2078]
[1751008649095,0.40741,2453.4,2453.3,36.99912831]
[1751008649291,0.40741,2453.4,2453.3,34.5858]
[1751008649493,0.40741,2453.4,2453.3,35.2553]
[1751008651802,0.40741,2453.4,2453.3,34.5858]
[1751008652093,0.40741,2453.4,2453.3,28.1378]
[1751008652297,0.40741,2453.4,2453.3,28.1348]
[1751008652499,0.40741,2453.4,2453.3,3.2078]
[1751008652702,0.40741,2453.4,2453.3,28.1358]
[1751008652993,0.40741,2453.4,2453.3,3.2078]
[1751008653207,0.40741,2453.4,2453.3,28.1368]
[1751008653791,1.11171,2453.4,2453.3,28.1368]
[1751008654391,1.11171,2453.4,2453.3,28.1338]
[1751008654705,1.11171,2453.4,2453.3,24.926]
[1751008656596,0.40743,2453.3,2453.2,2.92540742]
[1751008656799,2.38863,2453.3,2453.2,27.84740742]
[1751008657102,0.40746,2453.1,2453.0,6.13320742]
[1751008657307,0.40746,2453.1,2453.0,31.05320742]
[1751008658201,0.40746,2453.1,2453.0,3.2078]
[1751008658499,0.40746,2453.1,2453.0,28.1238]
[1751008660098,0.40746,2453.1,2453.0,3.2078]
[1751008660403,0.40746,2453.1,2453.0,28.1248]
[1751008663999,0.40746,2453.1,2453.0,3.2078]
[1751008665905,0.40748,2453.0,2452.5,6.461]
[1751008666103,0.40754,2452.6,2452.5,6.461]
[1751008666406,0.40754,2452.6,2452.5,9.38640742]
[1751008666802,0.40754,2452.7,2452.5,9.38640742]
[1751008667105,0.40754,2452.7,2452.6,3.64460742]
[1751008667508,0.40754,2452.7,2452.6,28.54960742]
[1751008670107,3.62400742,2452.9,2452.6,24.906]
[1751008670305,0.40753,2452.7,2452.6,24.906]
[1751008670705,1.3471,2452.8,2452.3,31.25752831]
[1751008671008,0.40758,2452.4,2452.3,28.8442]
[1751008671711,0.40758,2452.4,2452.3,28.8472]
[1751008672104,1.3471,2452.8,2452.3,28.8472]
[1751008672105,0.40757,2452.5,2452.3,28.8472]
[1751008672314,0.40757,2452.5,2452.4,2.92540742]
[1751008673807,0.6986,2452.9,2452.4,9.38740742]
[1751008674004,0.6986,2452.9,2452.8,2.92540742]
[1751008674205,1.10609,2452.9,2452.8,2.92540742]
[1751008675409,0.40753,2452.7,2452.6,6.13320742]
[1751008675718,0.40753,2452.7,2452.6,31.04220742]
[1751008675908,0.40753,2452.7,2452.6,6.13320742]